bitfinex/quotes_ETHUSD_20260130
["timestamp","ask_amount","ask_price","bid_price","bid_amount"]
[1769749710168,12.96462839,2754.6,2753.7,14.90608354]
[1769749710368,12.96462839,2754.6,2753.8,13.80509011]
[1769749710668,12.96462839,2754.6,2753.8,1.85376778]
[1769749712179,0.90759799,2754.6,2753.9,11.95132233]
[1769749713695,3.63019152,2754.7,2753.9,11.95132233]
[1769749714088,0.001,2754.4,2753.9,11.95132233]
[1769749714266,0.001,2754.4,2753.9,13.49871467]
[1769749716297,0.001,2754.4,2753.9,14.40650716]
[1769749717599,0.001,2754.4,2753.9,13.49871467]
[1769749718304,0.001,2754.4,2754.0,0.761]
[1769749719806,6.49674363,2754.4,2753.4,12.62701498]
[1769749719985,12.43470214,2754.0,2753.1,0.90804968]
[1769749720307,12.43470214,2754.0,2753.2,1.66903372]
[1769749721702,13.34248926,2754.0,2753.2,1.66903372]
[1769749722018,0.90775267,2754.1,2753.3,12.62701498]
[1769749722307,15.10475855,2754.1,2753.3,12.62701498]
[1769749724608,15.10475855,2754.1,2753.3,13.53500072]
[1769749724805,14.19700588,2754.1,2753.3,13.53500072]
[1769749725180,1.76230374,2754.1,2753.3,13.53500072]
[1769749725606,0.90771959,2754.2,2753.3,13.53500072]
[1769749725810,1.55736613,2754.3,2753.3,13.53500072]
[1769749726680,0.001,2754.4,2753.4,6.49574363]
[1769749726886,0.90864238,2754.4,2753.5,12.62901498]
[1769749728533,0.001,2754.4,2753.7,12.62701498]
[1769749729518,12.43470214,2754.3,2753.8,0.761]
[1769749731811,0.90770459,2754.2,2753.8,0.761]
[1769749732009,2.60512399,2754.2,2753.8,0.761]
[1769749734231,15.03982613,2754.2,2753.8,0.755]
[1769749734529,15.03982613,2754.2,2753.8,0.743]
[1769749734734,15.03982613,2754.2,2753.8,0.735]
[1769749734889,1.86706134,2754.1,2753.8,0.727]
[1769749735090,1.86706134,2754.1,2753.8,0.71409201]
[1769749735709,1.86706134,2754.1,2753.5,0.763]
[1769749736528,2.77481302,2754.1,2753.5,0.763]
[1769749737300,1.86706134,2754.1,2753.5,0.763]
[1769749737501,2.7748048,2754.1,2753.5,0.763]
[1769749738220,1.86706134,2754.1,2753.5,0.763]
[1769749738422,1.86706134,2754.1,2753.5,13.55168357]
[1769749738924,2.77480902,2754.1,2753.5,13.55168357]
[1769749739925,1.86706134,2754.1,2753.5,13.55168357]
[1769749740123,1.86706134,2754.1,2753.5,14.45961366]
[1769749740330,15.91039386,2754.4,2753.5,14.45961366]
[1769749740331,13.1864962,2754.3,2753.5,14.45961366]
[1769749740636,13.1864962,2754.3,2753.5,13.55168357]
[1769749741133,13.1864962,2754.3,2753.7,0.002]
[1769749741700,13.1864962,2754.3,2753.7,3.91e-06]
[1769749741900,12.27880338,2754.1,2753.5,0.76100391]
[1769749742130,12.27880338,2754.1,2753.5,0.75900391]
[1769749742312,12.27880338,2754.1,2753.5,0.75700391]
[1769749742519,12.27880338,2753.9,2753.3,0.761]
[1769749742720,12.27880338,2753.9,2753.3,0.759]
[1769749742909,1.31865739,2753.8,2753.3,0.757]
[1769749743221,1.31865739,2753.8,2752.9,1.42626438]
[1769749743222,13.59746077,2753.8,2752.9,1.42626438]
[1769749743410,13.59746077,2753.8,2752.9,1.30654203]
[1769749743611,13.59746077,2753.8,2752.9,1.29854203]
[1769749743810,13.59746077,2753.8,2752.9,1.29054203]
[1769749744133,12.27880338,2753.6,2752.9,1.27854203]
[1769749744312,12.27880338,2753.6,2752.6,0.72014878]
[1769749744511,12.27880338,2753.6,2752.5,0.002]
[1769749744512,12.27880338,2753.4,2752.5,0.002]
[1769749744713,12.27880338,2753.4,2752.5,0.763]
[1769749745927,12.27880338,2753.4,2752.5,13.55168357]
[1769749746129,0.67016616,2753.3,2752.5,13.55168357]
[1769749746638,0.90803428,2753.2,2752.5,13.55168357]
[1769749748747,0.90792952,2753.6,2752.9,12.78868357]
[1769749749106,0.90792952,2753.6,2752.6,12.78868357]
[1769749749107,13.77254905,2753.6,2752.6,12.78868357]
[1769749749536,13.77254905,2753.6,2752.7,0.761]
[1769749752349,13.77254905,2753.6,2752.5,0.002]
[1769749752711,12.27880338,2753.3,2752.5,0.001]
[1769749752912,0.90803428,2753.2,2752.5,12.78968357]
[1769749753233,1.68188854,2753.1,2752.5,12.78968357]
[1769749753616,0.90803428,2753.2,2752.5,12.78968357]
[1769749754847,13.18683766,2753.2,2752.3,0.002]
[1769749755342,13.18683766,2753.2,2752.3,12.79068357]
[1769749756133,0.90803428,2753.2,2752.3,12.79068357]
[1769749756414,0.4540082,2753.1,2752.3,12.79068357]
[1769749757036,0.90810025,2753.0,2752.3,12.79068357]
[1769749759060,13.18690363,2753.0,2752.1,0.00100979]
[1769749759360,13.18690363,2753.0,2752.1,0.75400979]
[1769749759566,13.18690363,2753.0,2751.8,0.90848132]
[1769749759567,13.18690363,2753.0,2751.8,12.78868357]
[1769749759719,12.27880338,2752.7,2751.8,12.78868357]
[1769749760054,2.3759721,2752.9,2752.0,12.78868357]
[1769749761139,0.90816623,2752.8,2752.0,13.6970849]
[1769749761651,0.90816623,2752.8,2752.0,12.78868357]
[1769749762736,13.18696961,2752.8,2752.0,12.78868357]
[1769749762916,1.68195225,2752.7,2752.0,12.78868357]
[1769749763447,0.90823221,2752.6,2752.0,12.78868357]
[1769749764450,0.90823221,2752.6,2751.8,12.78868357]
[1769749764654,0.90823221,2752.6,2751.8,13.54968357]
[1769749765023,13.18703559,2752.6,2751.7,0.002]
[1769749765229,12.27880338,2752.4,2751.5,5.87e-06]
[1769749765725,9.48189108,2752.2,2751.5,5.87e-06]
[1769749766427,0.90833121,2752.3,2751.5,12.34180144]
[1769749767338,0.90833121,2752.3,2752.0,0.001]
[1769749767546,1.65512612,2752.2,2752.0,0.001]
[1769749767939,0.90839722,2752.1,2752.0,0.001]
[1769749768452,2.56351301,2752.2,2752.0,0.001]
[1769749771062,1.57839597,2752.2,2752.0,12.34179949]
[1769749771230,0.90823221,2752.6,2752.0,12.34179949]
[1769749772041,0.86105141,2752.8,2752.0,3.92e-06]
[1769749772245,12.91770536,2753.0,2752.1,12.34179557]
[1769749772578,2.3490534,2752.9,2752.1,12.34179557]
[1769749773131,0.90810025,2753.0,2752.1,12.34179557]
[1769749775377,0.90809154,2753.1,2752.3,12.25184061]
[1769749778786,0.90803428,2753.2,2752.3,13.1601597]
[1769749779767,0.001,2752.8,2752.3,13.1601597]
[1769749782576,0.90703428,2753.2,2752.4,12.25184061]
[1769749782766,3.29075791,2753.2,2752.4,12.25184061]
[1769749782950,3.28875791,2753.2,2752.4,12.25184061]
[1769749783150,3.28675791,2753.2,2752.4,12.25184061]
[1769749783364,0.90802339,2753.3,2752.4,12.25184061]
[1769749783583,0.90602339,2753.3,2752.4,12.25184061]
[1769749783783,0.90202339,2753.3,2752.4,12.25184061]
[1769749783983,0.89802339,2753.3,2752.4,12.25184061]
[1769749785058,0.89802339,2753.3,2752.6,12.25184061]
[1769749785263,13.81114573,2753.4,2752.6,12.25184061]
[1769749785482,15.52414332,2753.4,2752.6,12.25184061]
[1769749786084,15.52414332,2753.4,2752.5,13.16010582]
[1769749786593,15.52414332,2753.4,2752.5,12.25184061]
[1769749787293,2.62199049,2753.4,2752.5,13.16010058]
[1769749787587,13.81114573,2753.4,2752.5,13.93116157]
[1769749788083,13.81114573,2753.4,2752.5,14.83942298]
[1769749788462,13.81114573,2753.4,2752.5,13.93116157]
[1769749788855,13.81114573,2753.4,2752.5,14.83942185]
[1769749789193,0.001,2753.4,2752.5,14.83942185]
[1769749789374,0.001,2753.4,2752.7,12.25184061]
[1769749792790,0.001,2753.2,2752.7,12.25184061]
[1769749795661,0.001,2753.2,2752.7,13.16003955]
[1769749796264,0.001,2753.2,2752.7,12.25184061]
[1769749798575,0.001,2753.2,2752.6,2.60825926]
[1769749798776,13.90720077,2753.2,2752.3,13.60057714]
[1769749799094,13.90720077,2753.2,2752.6,0.761]
[1769749800477,0.90806726,2753.1,2752.6,0.761]
[1769749800999,14.81525691,2753.2,2752.6,0.761]
[1769749801207,13.90720077,2753.2,2752.6,0.761]
[1769749801501,2.17343924,2753.2,2752.6,0.761]
[1769749801665,14.81525812,2753.2,2752.6,0.761]
[1769749801870,14.48654969,2753.1,2752.3,0.002]
[1769749802272,12.64181888,2752.8,2752.3,0.001]
[1769749802573,13.5500181,2752.7,2752.3,0.001]
[1769749803373,13.5500181,2752.7,2752.0,3.92e-06]
[1769749803374,12.64181888,2752.5,2752.0,3.92e-06]
[1769749804203,12.64181888,2752.5,2751.3,0.91065933]
[1769749804389,0.90829821,2752.4,2751.4,13.59887802]
[1769749804590,13.55011709,2752.4,2751.4,13.59887802]
[1769749805704,13.55011709,2752.4,2751.4,12.69227016]
[1769749805905,1.36911227,2752.3,2751.4,12.69227016]
[1769749806110,12.64181888,2752.2,2751.4,0.002]
[1769749806488,12.64181888,2752.0,2751.4,0.002]
[1769749807213,0.90839722,2752.1,2751.4,0.002]
[1769749807516,13.55019009,2752.2,2751.3,14.35792636]
[1769749807707,13.55019009,2752.2,2751.3,16.1551873]
[1769749807909,13.55019009,2752.2,2751.4,12.69027016]
[1769749808211,1.36911227,2752.3,2751.4,12.68827016]
[1769749808212,2.27744456,2752.3,2751.4,12.68827016]
[1769749808589,2.27744456,2752.3,2751.5,0.90859531]
[1769749808798,2.27744456,2752.3,2751.6,12.69027016]
[1769749809410,0.90833229,2752.3,2751.6,12.69027016]
[1769749809822,12.64181888,2752.2,2751.4,0.9086071]
[1769749809995,12.64181888,2751.8,2751.0,0.002]
[1769749810183,13.55015117,2752.3,2751.2,12.69027016]
[1769749810384,0.45416571,2752.2,2751.2,12.69027016]
[1769749811118,0.90839722,2752.1,2751.2,12.69027016]
[1769749811611,13.5502161,2752.1,2751.2,12.69027016]
[1769749814117,13.5502161,2752.1,2751.0,12.69227016]
[1769749814316,12.64181888,2751.9,2751.0,12.69227016]
[1769749814518,12.64181888,2751.8,2751.0,0.002]
[1769749815135,12.64181888,2751.8,2751.0,0.001]
[1769749815301,12.64181888,2751.8,2750.6,13.59714364]
[1769749815501,12.64181888,2751.6,2750.6,13.59714364]
[1769749815801,12.64181888,2751.6,2750.7,0.90885381]
[1769749816006,12.64181888,2751.6,2750.8,12.69027016]
[1769749816320,2.82179287,2751.7,2750.8,13.59908531]
[1769749816507,0.90846324,2751.9,2751.1,12.69027016]
[1769749818914,0.90846324,2751.9,2751.1,13.59899707]
[1769749819320,0.90846324,2751.9,2751.1,12.69027016]
[1769749819808,0.90846324,2751.9,2751.1,13.5989947]
[1769749820022,0.63060005,2751.8,2751.1,13.5989947]
[1769749820209,0.90852927,2751.7,2751.1,12.69027016]
[1769749821096,0.90852927,2751.7,2751.0,0.002]
[1769749822822,0.90852927,2751.7,2751.0,12.69227016]
[1769749824431,1.53911687,2751.8,2751.1,0.90872741]
[1769749824599,0.63060005,2751.8,2751.1,14.42135639]
[1769749824800,0.90848755,2751.9,2751.1,14.42135639]
[1769749825327,0.90848755,2751.9,2751.1,12.69027016]
[1769749826309,2.67224659,2752.0,2751.1,12.69027016]
[1769749826510,3.6336,2752.1,2751.2,0.90869438]
[1769749826710,3.6336,2752.1,2751.3,11.42863007]
[1769749827300,12.33339274,2752.0,2751.3,11.42863007]
[1769749827499,12.33339274,2752.0,2751.1,11.42863007]
[1769749827997,12.33339274,2752.0,2751.1,12.33733978]
[1769749828242,1.59669927,2751.9,2751.1,12.33733978]
[1769749829137,0.90849625,2751.8,2751.1,11.42863007]
[1769749829314,2.50518144,2751.9,2751.1,11.42863007]
[1769749829515,2.50518144,2751.9,2751.1,12.33735543]
[1769749829821,2.50518144,2751.9,2751.1,11.42863007]
[1769749830533,0.001,2751.8,2751.1,11.42863007]
[1769749831251,1.84833387,2751.8,2751.1,11.42863007]
[1769749832213,1.84833387,2751.8,2751.1,12.33735598]
[1769749832838,1.84833387,2751.8,2751.1,11.42863007]
[1769749834039,2.75685527,2751.8,2751.1,11.42863007]
[1769749834732,2.75685527,2751.8,2751.1,12.33735486]
[1769749835431,2.75685527,2751.8,2751.1,11.42863007]
[1769749835624,2.75685527,2751.8,2751.1,12.33735323]
[1769749835821,2.75685527,2751.8,2751.1,11.42863007]
[1769749837429,2.75685527,2751.8,2751.1,12.33735451]
[1769749837815,2.75685527,2751.8,2751.1,11.42863007]
[1769749838038,1.84833387,2751.8,2751.1,12.33735389]
[1769749838343,0.001,2751.8,2751.1,12.33735389]
[1769749838634,0.90949682,2751.8,2751.1,12.33735389]
[1769749839057,0.001,2752.2,2751.4,11.15476504]
[1769749839208,0.001,2752.2,2751.7,11.15476504]
[1769749839408,0.001,2752.2,2751.7,12.9955047]
[1769749840042,0.001,2752.2,2751.7,13.90401419]
[1769749840231,0.001,2752.2,2751.7,12.9955047]
[1769749840733,0.001,2752.2,2751.7,13.90402962]
[1769749843059,0.001,2752.2,2751.7,12.9955047]
[1769749844043,0.001,2752.2,2751.7,1.84073966]
[1769749844221,1.22965575,2752.2,2751.5,11.91676504]
[1769749844616,2.13802823,2752.2,2751.5,11.91676504]
[1769749844942,14.42358576,2752.2,2751.5,1.67059121]
[1769749845443,14.42357907,2752.2,2751.4,12.82537093]
[1769749846242,13.51521328,2752.2,2751.5,0.9085885]
[1769749846444,13.51521328,2752.2,2751.4,11.91676504]
[1769749846445,14.42358914,2752.2,2751.4,11.91676504]
[1769749846633,14.42358914,2752.2,2751.4,12.82537842]
[1769749846943,14.42358372,2752.2,2751.5,0.90858906]
[1769749847113,14.42358372,2752.2,2751.4,12.82536896]
[1769749847846,13.51521328,2752.2,2751.4,12.82536896]
[1769749848347,1.22965575,2752.2,2751.5,11.15476504]
[1769749848644,0.001,2752.2,2751.5,11.15476504]
[1769749848855,0.001,2752.2,2751.7,11.15476504]
[1769749849550,0.90525358,2752.6,2751.7,11.15476504]
[1769749849758,0.90225358,2752.6,2751.7,11.15476504]
[1769749849957,0.89925358,2752.6,2751.7,11.15476504]
[1769749850152,1.67877026,2752.5,2751.7,11.15476504]
[1769749850958,2.58704236,2752.5,2751.7,12.0632633]
[1769749852455,0.90816623,2752.8,2751.7,12.0632633]
[1769749854366,0.90816623,2752.8,2751.9,11.15476504]
[1769749854661,13.19372376,2752.8,2751.9,11.15476504]
[1769749855157,13.19372376,2752.8,2751.9,11.15676504]
[1769749855366,0.001,2752.6,2751.9,12.06521756]
[1769749856059,0.001,2752.6,2751.9,11.15676504]
[1769749856756,9.21166818,2752.5,2751.6,0.002]
[1769749856962,9.21166818,2752.5,2751.5,0.90557586]
[1769749857161,6.49456822,2752.3,2751.1,0.90371057]
[1769749857481,0.90839722,2752.1,2751.1,12.78018057]
[1769749859162,0.90838738,2752.2,2751.1,12.78018057]
[1769749861382,12.65684691,2752.5,2751.1,12.78018057]
[1769749863539,0.90826521,2752.5,2751.3,11.87646226]
[1769749863874,0.90826521,2752.5,2751.5,11.87646226]
[1769749864039,0.90826521,2752.5,2751.7,11.87646226]
[1769749865577,15.38264255,2752.6,2751.7,11.87646226]
[1769749868162,3.63406085,2752.6,2751.9,0.002]
[1769749868368,4.25655317,2752.6,2751.9,0.002]
[1769749868967,16.00513487,2752.6,2751.9,0.002]
[1769749870049,11.7485817,2752.5,2751.9,0.002]
[1769749870970,11.7485817,2752.5,2751.9,0.001]
[1769749872181,11.7485817,2752.3,2751.9,0.001]
[1769749872379,1.26568799,2752.2,2751.9,0.001]
[1769749874383,2.17408499,2752.2,2751.9,0.001]
[1769749875579,13.92266669,2752.2,2751.9,0.001]
[1769749875781,13.92266669,2752.2,2751.6,0.002]
[1769749875987,13.92266669,2752.2,2751.6,0.001]
[1769749876187,11.7485817,2752.0,2751.6,0.001]
[1769749876393,11.7485817,2752.0,2751.0,0.002]
[1769749876394,12.65704494,2751.9,2751.0,0.002]
[1769749876894,12.65704494,2751.9,2751.0,0.91075732]
[1769749877092,12.65704494,2751.9,2751.1,0.90872201]
[1769749877266,15.0714229,2751.9,2751.1,12.78518427]
[1769749877894,15.0714229,2751.9,2751.1,11.87646226]
[1769749878567,0.90851698,2751.8,2751.0,11.87846226]
[1769749879090,0.9084473,2752.0,2751.0,11.87846226]
[1769749879294,0.9084222,2752.1,2751.2,11.87646226]
[1769749880573,12.65791291,2752.3,2751.2,12.78513422]
[1769749884699,12.65791291,2752.3,2751.1,5.56307374]
[1769749884700,11.7485817,2752.2,2751.1,1.92818075]
[1769749884994,11.7485817,2752.2,2751.1,14.71336641]
[1769749887165,0.90839722,2752.1,2751.1,14.71336641]
[1769749887370,12.28416669,2752.1,2751.2,12.78164721]
[1769749890566,12.28416669,2752.1,2751.3,11.31011057]
[1769749892689,12.28416669,2752.1,2751.2,1.47153664]
[1769749892894,12.28416669,2752.1,2751.2,12.07211057]
[1769749893076,12.28416669,2752.1,2751.4,0.002]
[1769749893497,0.001,2751.9,2751.4,0.002]
[1769749898880,0.001,2751.9,2751.5,10.46483944]
[1769749899080,0.001,2751.9,2751.4,0.002]
[1769749899281,0.001,2751.9,2751.5,1.04668394]
[1769749900407,0.001,2751.9,2751.4,10.46683944]
[1769749902415,0.001,2751.9,2751.4,11.37545807]
[1769749903113,0.001,2752.3,2751.5,10.46483944]
[1769749903301,0.001,2752.6,2751.8,10.46483944]
[1769749903505,0.90812497,2753.0,2752.0,10.46483944]
[1769749903823,0.90608784,2753.1,2752.0,10.46483944]
[1769749903984,0.90408784,2753.1,2752.0,10.46483944]
[1769749904185,0.90208784,2753.1,2752.0,10.46483944]
[1769749904386,1.54124854,2753.0,2752.2,10.46483944]
[1769749906098,2.44936922,2753.0,2752.2,11.37319724]
[1769749906689,2.44936922,2753.0,2752.2,10.46483944]
[1769749906885,13.03024312,2753.0,2752.2,10.46483944]
[1769749907300,13.03024312,2753.0,2752.0,10.46483944]
[1769749907514,10.5808739,2752.8,2752.0,12.21135754]
[1769749908016,2.44936922,2753.0,2752.0,12.21135754]
[1769749908220,10.5808739,2752.9,2752.0,1.7465181]
[1769749908391,10.5808739,2752.3,2751.4,0.91062169]
[1769749908714,10.5808739,2752.3,2751.4,11.37545119]
[1769749909013,10.5808739,2752.3,2751.5,0.90857727]
[1769749909416,10.5808739,2752.3,2751.4,14.1013195]
[1769749909622,10.5808739,2752.3,2751.6,0.9105551]
[1769749911518,11.48920519,2752.3,2751.6,0.9105551]
[1769749912112,13.00143199,2752.3,2751.6,0.9105551]
[1769749912430,12.0931007,2752.3,2751.6,0.9105551]
[1769749913001,12.0931007,2752.3,2751.5,10.09452354]
[1769749913332,1.5122268,2752.3,2751.6,11.36939454]
[1769749913534,0.24205303,2752.2,2751.6,11.36739454]
[1769749913737,0.24205303,2752.2,2751.6,11.36539454]
[1769749913933,0.24205303,2752.2,2751.6,11.36339454]
[1769749916426,0.24205303,2752.2,2751.4,0.002]
[1769749916427,11.85879096,2752.2,2751.4,0.002]
[1769749916644,1.63159556,2752.1,2751.4,0.002]
[1769749918814,1.63159556,2752.1,2751.4,0.91062833]
[1769749919015,1.63159556,2752.1,2751.6,0.002]
[1769749919425,1.63259556,2752.1,2751.6,0.002]
[1769749921815,10.7083671,2751.9,2751.4,0.002]
[1769749922447,10.7083671,2751.6,2751.1,0.002]
[1769749923814,0.90859531,2751.5,2751.1,0.002]
[1769749924016,11.61696241,2751.5,2751.1,0.001]
[1769749924211,1.52512239,2751.4,2751.1,1.175e-05]
[1769749925320,0.90859531,2751.5,2751.1,1.175e-05]
[1769749925919,3.63425914,2751.6,2751.1,1.175e-05]
[1769749928819,0.90856229,2751.6,2751.1,1.175e-05]
[1769749931052,11.61691856,2751.7,2751.1,1.175e-05]
[1769749931630,0.001,2751.4,2751.1,1.175e-05]
[1769749936138,0.90848524,2751.9,2751.1,11.64931894]
[1769749936447,2.54101336,2752.1,2751.1,11.64931894]
[1769749936653,0.9094178,2752.1,2751.1,11.64931894]
[1769749938557,0.001,2752.1,2751.3,10.50747894]
[1769749941729,0.001,2752.1,2751.3,11.41612614]
[1769749943243,0.001,2752.1,2751.3,10.50747894]
[1769749943244,0.001,2751.9,2751.3,10.50747894]
[1769749943874,0.001,2751.9,2751.3,11.41613772]
[1769749944073,0.001,2751.9,2751.4,1.50508705]
[1769749945198,0.001,2751.9,2751.3,10.50747894]
[1769749945343,10.7093671,2751.9,2751.1,1.175e-05]
[1769749945544,10.7093671,2751.9,2751.1,0.90871486]
[1769749945741,10.7093671,2751.9,2751.1,1.175e-05]
[1769749945946,10.31539686,2751.7,2751.1,1.175e-05]
[1769749946147,10.31539686,2751.6,2751.1,1.175e-05]
[1769749946686,6.49617058,2751.7,2751.1,1.175e-05]
[1769749947684,12.94444688,2751.8,2751.1,1.175e-05]
[1769749948986,10.31539686,2751.7,2751.1,1.175e-05]
[1769749949192,1.29444469,2751.6,2751.1,1.175e-05]
[1769749951504,0.90859531,2751.5,2751.1,1.175e-05]
[1769749952901,2.20303037,2751.6,2751.1,1.175e-05]
[1769749955670,2.20303037,2751.6,2751.3,0.002]
[1769749955881,2.20303037,2751.6,2751.3,0.001]
[1769749956101,2.20303037,2751.6,2751.1,1.175e-05]
[1769749956102,1.61525565,2751.5,2751.0,0.00101762]
[1769749957308,2.52387635,2751.5,2751.0,0.00101762]
[1769749958802,10.0713675,2751.3,2750.8,0.002]
[1769749959114,10.0713675,2751.0,2750.3,0.002]
[1769749959404,10.0713675,2750.8,2750.3,0.002]
[1769749961803,10.98022706,2750.7,2750.3,0.002]
[1769749962008,10.98022706,2750.7,2750.3,0.001]
[1769749962308,10.98022706,2750.7,2750.3,3.92e-06]
[1769749962512,2.11117834,2750.6,2750.3,3.92e-06]
[1769749963311,12.18254584,2750.6,2750.3,3.92e-06]
[1769749963613,2.11117834,2750.6,2750.3,3.92e-06]
[1769749963918,12.18254584,2750.6,2750.3,3.92e-06]
[1769749964080,10.0713675,2750.5,2750.3,3.92e-06]
[1769749964279,1.30914468,2750.4,2750.3,3.92e-06]
[1769749965307,2.11117834,2750.6,2750.3,3.92e-06]
[1769749965496,0.9088719,2750.7,2750.3,3.92e-06]
[1769749966277,10.9802394,2750.7,2750.3,3.92e-06]
[1769749967760,10.9802394,2750.7,2750.0,0.00100783]
[1769749973806,17.48500309,2750.7,2750.0,0.00100783]
[1769749974003,17.48500309,2750.7,2749.9,10.06532091]
[1769749974004,16.57613119,2750.4,2749.9,0.002]
[1769749974210,11.72898062,2750.3,2749.6,0.002]
[1769749974618,0.90902479,2750.2,2749.6,0.002]
[1769749975219,12.63799342,2750.3,2749.6,0.002]
[1769749976240,10.15751082,2750.2,2749.6,0.002]
[1769749976403,1.27241367,2750.1,2749.6,0.002]
[1769749976804,0.9090261,2750.2,2749.6,0.002]
[1769749978324,1.65761312,2750.3,2749.6,10.36911369]
[1769749978529,0.90895869,2750.4,2749.6,10.36911369]
[1769749978728,0.90895869,2750.4,2749.6,11.27833354]
[1769749979636,0.90895869,2750.4,2749.8,0.002]
[1769749980338,0.90895869,2750.4,2749.8,10.36911369]
[1769749980838,0.001,2750.5,2749.8,10.36911369]
[1769749981944,1.10674034,2750.4,2749.8,10.36911369]
[1769749982747,0.90899174,2750.3,2749.8,0.002]
[1769749982931,18.67799559,2750.4,2749.8,0.002]
[1769749984624,8.52048477,2750.4,2749.8,0.002]
[1769749984825,1.10674034,2750.4,2749.8,10.36911369]
[1769749985031,0.001,2750.5,2749.8,10.36911369]
[1769749985628,0.90993213,2750.5,2749.8,10.36911369]
[1769749986040,0.001,2750.5,2749.8,10.36911369]
[1769749986542,16.66227451,2750.4,2749.8,0.002]
[1769749987319,11.06650256,2750.3,2749.8,0.002]
[1769749987618,1.75712663,2750.2,2749.8,0.002]
[1769749988019,1.75712663,2750.2,2749.8,10.36911369]
[1769749988218,0.90994615,2750.5,2749.8,10.36911369]
[1769749989228,11.06745697,2750.5,2749.8,0.002]
[1769749992750,0.001,2750.3,2749.8,0.002]
[1769749992955,0.001,2750.3,2749.8,10.36911369]
[1769749996030,0.001,2750.3,2749.8,0.002]
[1769749996359,0.65057637,2750.2,2749.8,0.002]
[1769750001951,0.65057637,2750.2,2749.8,10.36911369]
[1769750002154,0.001,2750.3,2749.8,10.36911369]
[1769750002664,10.15751082,2750.0,2748.6,10.36711369]
[1769750002846,16.66227451,2749.7,2748.7,10.36711369]
[1769750003046,10.15751082,2749.6,2748.7,11.4949814]
[1769750003243,10.15751082,2749.6,2748.7,12.40449949]
[1769750003749,0.90925622,2749.5,2748.7,12.40449949]
[1769750004076,0.90924143,2749.6,2748.7,12.40449949]
[1769750004437,0.46662037,2750.0,2748.7,12.40449949]
[1769750004762,1.37573368,2750.0,2748.9,10.36711369]
[1769750005165,1.37673368,2750.0,2748.9,10.36711369]
[1769750005368,7.88149737,2750.0,2748.9,10.36711369]
[1769750008050,17.37250954,2750.0,2749.1,9.67971793]
[1769750008262,2.10087413,2749.9,2749.1,9.67971793]
[1769750009662,11.5918863,2749.9,2749.1,9.67971793]
[1769750010179,9.49101217,2749.7,2748.8,5.89265612]
[1769750010480,6.50476369,2749.7,2748.8,10.58918394]
[1769750010779,0.90915702,2749.8,2749.0,10.5891379]
[1769750010984,10.40016919,2749.8,2748.8,10.58918]
[1769750011183,9.49101217,2749.6,2748.6,9.67971793]
[1769750011356,9.49101217,2749.6,2748.7,0.90951231]
[1769750011557,9.49101217,2749.6,2748.7,10.58923024]
[1769750011757,8.11853083,2749.7,2748.9,9.67971793]
[1769750011758,1.61376714,2749.7,2748.9,9.67971793]
[1769750012168,2.52298675,2749.7,2748.9,10.5891711]
[1769750012368,9.49101217,2749.6,2748.6,10.58926308]
[1769750013485,9.49101217,2749.6,2748.5,0.9115775]
[1769750013687,9.49101217,2749.6,2748.7,9.67971793]
[1769750014391,0.90925622,2749.5,2748.7,9.67971793]
[1769750014586,2.17173888,2749.5,2748.7,9.67971793]
[1769750014789,2.17173888,2749.5,2748.7,10.58922887]
[1769750015187,2.17173888,2749.5,2748.5,0.002]
[1769750015188,9.49101217,2749.3,2748.5,0.002]
[1769750015486,9.49101217,2749.3,2748.5,10.41897683]
[1769750015657,11.30776364,2749.3,2748.5,10.41897683]
[1769750016190,1.81675147,2749.3,2748.5,10.41897683]
[1769750017302,2.72608567,2749.3,2748.5,10.41897683]
[1769750017461,2.72608567,2749.3,2748.5,10.4189726]
[1769750017795,2.72608567,2749.3,2748.6,10.26939198]
[1769750017962,2.72608567,2749.3,2748.7,0.002]
[1769750018164,2.17174193,2749.5,2748.7,9.50939198]
[1769750018398,0.90925927,2749.5,2748.7,9.50939198]
[1769750018693,0.90919009,2749.7,2748.7,9.50939198]
[1769750019377,0.90912396,2749.9,2748.9,9.50739198]
[1769750019700,6.50476369,2749.7,2749.0,0.762]
[1769750020002,6.50476369,2749.7,2749.0,10.26939198]
[1769750020463,2.13946049,2749.8,2749.0,10.26939198]
[1769750021687,0.90919009,2749.7,2749.0,10.26939198]
[1769750021874,0.90919009,2749.7,2749.0,11.17880809]
[1769750022075,1.65618231,2749.7,2749.0,11.17880809]
[1769750022380,1.65618231,2749.7,2749.0,9.50739198]
[1769750022597,1.65618231,2749.7,2749.1,0.762]
[1769750022765,1.65618231,2749.7,2749.0,9.50739198]
[1769750022965,1.65618231,2749.7,2749.1,0.762]
[1769750023168,0.47048246,2749.6,2748.8,10.41685764]
[1769750023679,0.47048246,2749.6,2748.9,10.41683578]
[1769750023885,1.37970965,2749.6,2748.9,10.41683578]
[1769750024093,0.47048246,2749.6,2748.9,10.41684229]
[1769750024798,2.56539049,2749.7,2749.0,9.50739198]
[1769750026201,2.56539049,2749.7,2748.8,10.41685978]
[1769750026202,12.44199147,2749.7,2748.8,10.41685978]
[1769750026496,9.87660098,2749.6,2748.8,0.9094678]
[1769750026697,9.87660098,2749.6,2748.8,10.41685978]
[1769750026903,9.87660098,2749.6,2748.8,9.50739198]
[1769750027081,1.89467552,2749.5,2748.8,9.50739198]
[1769750027281,1.89467552,2749.5,2748.9,0.762]
[1769750027491,1.89467552,2749.5,2749.0,10.26939198]
[1769750027690,1.65618231,2749.7,2749.0,11.17879093]
[1769750027992,6.50476369,2749.9,2749.0,11.17879093]
[1769750027993,7.413916,2749.9,2749.0,11.17879093]
[1769750030066,0.001,2749.4,2749.0,11.17879093]
[1769750033808,1.37672992,2750.0,2749.1,9.50739198]
[1769750034411,11.2533309,2750.0,2749.1,9.50739198]
[1769750034718,1.37672992,2750.0,2749.1,9.50739198]
[1769750034880,1.15213352,2749.9,2749.1,9.50739198]
[1769750035078,0.46762037,2750.0,2749.1,9.50739198]
[1769750035708,0.46762037,2750.0,2749.2,0.90935544]
[1769750035911,0.46762037,2750.0,2749.3,9.40865367]
[1769750037811,0.001,2750.3,2749.6,9.40865367]
[1769750039920,0.001,2750.3,2749.8,9.40865367]
[1769750040101,0.001,2750.3,2750.0,9.40865367]
[1769750040787,0.50106579,2750.9,2750.0,9.40865367]
[1769750041390,1.40985942,2750.9,2750.0,9.40865367]
[1769750041597,11.33547027,2750.9,2750.0,9.40865367]
[1769750041797,9.92561085,2750.6,2750.1,0.762]
[1769750041996,11.65989327,2750.6,2750.1,0.762]
[1769750042408,9.92561085,2750.3,2749.0,9.40865367]
[1769750042591,9.92561085,2750.3,2749.7,0.90918725]
[1769750042791,6.50833673,2750.4,2749.7,0.90918725]